fUSD/lending_fUSD_20240105
["ID","MTS","AMOUNT","RATE_DAILY","PERIOD"]
[310314125,1704471135809,-500.0,0.0003178,2]
[310314126,1704471135819,-1454.88,0.0003178,2]
[310314127,1704471135829,-848.25,0.0003178,2]
[310314128,1704471135839,-500.0,0.0003178,2]
[310314129,1704471135849,-3529.52,0.0003178,2]
[310314130,1704471135859,-500.0,0.0003178,2]
[310314131,1704471135870,-1261.77,0.0003178,2]
[310314132,1704471135880,-500.0,0.0003178,2]
[310314133,1704471135889,-500.0,0.0003178,2]
[310314134,1704471135899,-500.0,0.0003178,2]
[310314135,1704471135908,-500.0,0.0003178,2]
[310314136,1704471135918,-500.0,0.0003178,2]
[310314137,1704471135928,-673.04,0.0003178,2]
[310314138,1704471135936,-522.36,0.0003178,2]
[310314139,1704471135945,-500.0,0.0003178,2]
[310314140,1704471135955,-1207.05,0.0003178,2]
[310314141,1704471135965,-543.14,0.0003178,2]
[310314142,1704471135974,-806.5,0.0003178,2]
[310314143,1704471135984,-500.0,0.0003178,2]
[310314144,1704471135994,-2710.43,0.0003178,2]
[310314145,1704471136003,-500.0,0.0003178,2]
[310314146,1704471136014,-731.44,0.0003178,2]
[310314147,1704471136024,-500.0,0.0003178,2]
[310314148,1704471136034,-500.0,0.0003178,2]
[310314149,1704471136043,-500.0,0.0003178,2]
[310314150,1704471136053,-519.5,0.0003178,2]
[310314151,1704471136064,-2046.64,0.0003178,2]
[310314152,1704471136074,-762.26,0.0003178,2]
[310314153,1704471136084,-500.0,0.0003178,2]
[310314154,1704471136094,-1317.65,0.0003178,2]
[310314155,1704471136104,-620.31,0.0003178,2]
[310314156,1704471136113,-5333.49,0.0003178,2]
[310314157,1704471136123,-500.0,0.0003178,2]
[310314158,1704471136132,-500.0,0.0003178,2]
[310314159,1704471136142,-500.0,0.0003178,2]
[310314160,1704471136152,-978.21,0.0003178,2]
[310314161,1704471136162,-1254.61,0.0003178,2]
[310314162,1704471136171,-500.0,0.0003178,2]
[310314163,1704471136181,-572.04831194,0.0003178,2]
[310314164,1704471136191,-802.02,0.0003178,2]
[310314165,1704471136202,-1336.26,0.0003178,2]
[310314166,1704471136212,-537.87,0.0003178,2]
[310314167,1704471136222,-500.0,0.0003178,2]
[310314168,1704471136232,-3771.03,0.0003178,2]
[310314169,1704471136241,-500.0,0.0003178,2]
[310314170,1704471136250,-500.0,0.0003178,2]
[310314171,1704471136260,-500.0,0.0003178,2]
[310314172,1704471136270,-500.0,0.0003178,2]
[310314173,1704471136279,-500.0,0.0003178,2]
[310314174,1704471136289,-500.0,0.0003178,2]
[310314175,1704471136298,-525.81,0.0003178,2]
[310314176,1704471136308,-500.0,0.0003178,2]
[310314177,1704471136317,-500.0,0.0003178,2]
[310314178,1704471136326,-776.01,0.0003178,2]
[310314179,1704471136335,-3060.91,0.0003178,2]
[310314180,1704471136345,-13727.19,0.0003178,2]
[310314181,1704471136355,-500.0,0.0003178,2]
[310314182,1704471136364,-1204.63,0.0003178,2]
[310314183,1704471136374,-500.0,0.0003178,2]
[310314184,1704471136384,-500.0,0.0003178,2]
[310314185,1704471136393,-769.65,0.0003178,2]
[310314186,1704471136403,-500.0,0.0003178,2]
[310314187,1704471136413,-500.0,0.0003178,2]
[310314188,1704471136422,-537.11,0.0003178,2]
[310314189,1704471136431,-4626.56,0.0003178,2]
[310314190,1704471136441,-3709.47,0.0003178,2]
[310314191,1704471136451,-500.0,0.0003178,2]
[310314192,1704471136460,-1733.54,0.0003178,2]
[310314193,1704471136470,-9181.09,0.0003178,2]
[310314194,1704471136479,-3029.39,0.0003178,2]
[310314195,1704471136489,-5426.23,0.0003178,2]
[310314196,1704471136498,-740.27,0.0003178,2]
[310314197,1704471136509,-5834.39,0.0003178,2]
[310314198,1704471136520,-500.0,0.0003178,2]
[310314199,1704471136529,-500.0,0.0003178,2]
[310314200,1704471136539,-799.71,0.0003178,2]
[310314201,1704471136548,-500.0,0.0003178,2]
[310314202,1704471136558,-500.0,0.0003178,2]
[310314203,1704471136568,-500.0,0.0003178,2]
[310314204,1704471136578,-4345.18,0.0003178,2]
[310314205,1704471136587,-725.16,0.0003178,2]
[310314206,1704471136597,-500.0,0.0003178,2]
[310314207,1704471136607,-500.0,0.0003178,2]
[310314208,1704471136616,-30937.37,0.0003178,2]
[310314209,1704471136626,-821.62,0.0003178,2]
[310314210,1704471136635,-562.23985219,0.0003178,2]
[310314211,1704471136645,-1420.61,0.0003178,2]
[310314212,1704471136655,-500.0,0.0003178,2]
[310314213,1704471136664,-500.0,0.0003178,2]
[310314214,1704471136674,-675.77,0.0003178,2]
[310314215,1704471136683,-749.5,0.0003178,2]
[310314216,1704471136693,-900.8,0.0003178,2]
[310314217,1704471136703,-289.48382418,0.0003178,2]
[310314218,1704471136713,-699.84,0.0003178,2]
[310314219,1704471136723,-500.0,0.0003178,2]
[310314220,1704471136733,-500.0,0.0003178,2]
[310314221,1704471136743,-500.0,0.0003178,2]
[310314222,1704471136752,-500.0,0.0003178,2]
[310314223,1704471136762,-605.12,0.0003178,2]
[310314224,1704471136773,-809.12,0.0003178,2]
[310314225,1704471136783,-500.0,0.0003178,2]
[310314226,1704471136796,-1182.33,0.0003178,2]
[310314227,1704471136806,-500.0,0.0003178,2]
[310314228,1704471136815,-3777.28,0.0003178,2]
[310314229,1704471136825,-500.0,0.0003178,2]
[310314230,1704471136835,-1058.15,0.0003178,2]
[310314231,1704471136844,-571.4,0.0003178,2]
[310314232,1704471136854,-583.51765398,0.0003178,2]
[310314233,1704471136863,-500.0,0.0003178,2]
[310314234,1704471136873,-830.16,0.0003178,2]
[310314235,1704471136882,-2249.97,0.0003178,2]
[310314236,1704471136892,-500.0,0.0003178,2]
[310314237,1704471136902,-583.82685955,0.0003178,2]
[310314238,1704471136912,-500.0,0.0003178,2]
[310314239,1704471136921,-1921.66,0.0003178,2]
[310314240,1704471136931,-1078.96,0.0003178,2]
[310314241,1704471136940,-500.0,0.0003178,2]
[310314242,1704471136949,-2596.11,0.0003178,2]
[310314243,1704471136959,-1277.02,0.0003178,2]
[310314244,1704471136969,-500.0,0.0003178,2]
[310314245,1704471136978,-652.62,0.0003178,2]
[310314246,1704471136988,-607.30862626,0.0003178,2]
[310314247,1704471136999,-500.0,0.0003178,2]
[310314248,1704471137009,-915.92,0.0003178,2]
[310314249,1704471137020,-1916.84,0.0003178,2]
[310314250,1704471137030,-500.0,0.0003178,2]
[310314251,1704471137040,-500.0,0.0003178,2]
[310314252,1704471137050,-500.0,0.0003178,2]
[310314253,1704471137061,-150.0,0.0003178,2]
[310314254,1704471137071,-790.64,0.0003178,2]
[310314255,1704471137081,-582.86,0.0003178,2]
[310314256,1704471137091,-500.0,0.0003178,2]
[310314257,1704471137101,-500.0,0.0003178,2]
[310314258,1704471137111,-500.0,0.0003178,2]
[310314259,1704471137121,-3952.46,0.0003178,2]
[310314260,1704471137131,-4595.39,0.0003178,2]
[310314261,1704471137141,-500.0,0.0003178,2]
[310314262,1704471137151,-500.0,0.0003178,2]
[310314263,1704471137162,-500.0,0.0003178,2]
[310314264,1704471137172,-500.0,0.0003178,2]
[310314265,1704471137181,-1252.88,0.0003178,2]
[310314266,1704471137192,-756.94,0.0003178,2]
[310314267,1704471137201,-500.0,0.0003178,2]
[310314268,1704471137211,-717.12,0.0003178,2]
[310314269,1704471137221,-964.19,0.0003178,2]
[310314270,1704471137232,-1622.29,0.0003178,2]
[310314271,1704471137242,-500.0,0.0003178,2]
[310314272,1704471137252,-2229.13,0.0003178,2]
[310314273,1704471137262,-629.9,0.0003178,2]
[310314274,1704471137273,-500.0,0.0003178,2]
[310314275,1704471137283,-511.35,0.0003178,2]
[310314276,1704471137293,-500.0,0.0003178,2]
[310314277,1704471137302,-1254.57,0.0003178,2]
[310314278,1704471137312,-6081.11,0.0003178,2]
[310314279,1704471137321,-1984.28,0.0003178,2]
[310314280,1704471137331,-529.0,0.0003178,2]
[310314281,1704471137341,-500.0,0.0003178,2]
[310314282,1704471137351,-500.0,0.0003178,2]
[310314283,1704471137360,-730.24,0.0003178,2]
[310314284,1704471137370,-500.0,0.0003178,2]
[310314285,1704471137380,-839.46,0.0003178,2]
[310314286,1704471137390,-1375.91,0.0003178,2]
[310314287,1704471137398,-500.0,0.0003178,2]
[310314288,1704471137408,-500.0,0.0003178,2]
[310314289,1704471137418,-505.40488177,0.0003178,2]
[310314290,1704471137428,-1622.69,0.0003178,2]
[310314291,1704471137438,-11940.29,0.0003178,2]
[310314292,1704471137448,-290.81542793,0.0003178,2]
[310314293,1704471137458,-713.7,0.0003178,2]
[310314294,1704471137468,-5893.72,0.0003178,2]
[310314295,1704471137477,-1045.96,0.0003178,2]
[310314296,1704471137487,-2605.01,0.0003178,2]
[310314297,1704471137496,-500.0,0.0003178,2]
[310314298,1704471137505,-381.78,0.0003178,2]
[310314299,1704471137516,-500.0,0.0003178,2]
[310314300,1704471137525,-500.0,0.0003178,2]
[310314301,1704471137535,-500.0,0.0003178,2]
[310314302,1704471137545,-500.0,0.0003178,2]
[310314303,1704471137555,-500.0,0.0003178,2]
[310314304,1704471137564,-500.0,0.0003178,2]
[310314305,1704471137574,-608.68,0.0003178,2]
[310314306,1704471137584,-7863.2,0.0003178,2]
[310314307,1704471137594,-2294.09,0.0003178,2]
[310314308,1704471137603,-500.0,0.0003178,2]
[310314309,1704471137613,-543.11,0.0003178,2]
[310314310,1704471137623,-647.48,0.0003178,2]
[310314311,1704471137632,-500.0,0.0003178,2]
[310314312,1704471137642,-1192.53,0.0003178,2]
[310314313,1704471137651,-3601.71,0.0003178,2]
[310314314,1704471137661,-500.0,0.0003178,2]
[310314315,1704471137671,-1603.38,0.0003178,2]
[310314316,1704471137680,-500.0,0.0003178,2]
[310314317,1704471137690,-500.0,0.0003178,2]
[310314318,1704471137699,-500.0,0.0003178,2]
[310314319,1704471137708,-618.49,0.0003178,2]
[310314320,1704471137718,-2938.06,0.0003178,2]
[310314321,1704471137727,-1744.78,0.0003178,2]
[310314322,1704471137737,-500.0,0.0003178,2]
[310314323,1704471137747,-666.36,0.0003178,2]
[310314324,1704471137757,-770.23,0.0003178,2]
[310314325,1704471137766,-500.0,0.0003178,2]
[310314326,1704471137776,-500.0,0.0003178,2]
[310314327,1704471137787,-2064.43,0.0003178,2]
[310314328,1704471137798,-500.0,0.0003178,2]
[310314329,1704471137808,-5976.75,0.0003178,2]
[310314330,1704471137818,-5218.54,0.0003178,2]
[310314331,1704471137827,-526.45,0.0003178,2]
[310314332,1704471137839,-554.78,0.0003178,2]
[310314333,1704471137849,-770.2,0.0003178,2]
[310314334,1704471137858,-1624.24,0.0003178,2]
[310314335,1704471137869,-500.0,0.0003178,2]
[310314336,1704471137878,-500.0,0.0003178,2]
[310314337,1704471137887,-650.01,0.0003178,2]
[310314338,1704471137896,-657.7,0.0003178,2]
[310314339,1704471137906,-500.0,0.0003178,2]
[310314340,1704471137915,-500.0,0.0003178,2]
[310314341,1704471137925,-899.11,0.0003178,2]
[310314342,1704471137935,-500.0,0.0003178,2]
[310314343,1704471138029,-2564.8,0.0003178,2]
[310314344,1704471138040,-912.23,0.0003178,2]
[310314345,1704471138050,-701.65,0.0003178,2]
[310314346,1704471138060,-733.59,0.0003178,2]
[310314347,1704471138070,-1151.0,0.0003178,2]
[310314348,1704471138081,-788.16,0.0003178,2]
[310314349,1704471138090,-500.0,0.0003178,2]
[310314350,1704471138099,-500.0,0.0003178,2]
[310314351,1704471138109,-1833.74,0.0003178,2]
[310314352,1704471138118,-1286.65,0.0003178,2]
[310314353,1704471138128,-1365.11,0.0003178,2]
[310314354,1704471138137,-163.88472172,0.0003178,2]
[310314355,1704471138147,-1004.41,0.0003178,2]
[310314356,1704471138157,-1188.06,0.0003178,2]
[310314357,1704471138166,-500.0,0.0003178,2]
[310314358,1704471138176,-500.0,0.0003178,2]
[310314359,1704471138186,-500.0,0.0003178,2]
[310314360,1704471138195,-500.0,0.0003178,2]
[310314361,1704471138205,-889.44,0.0003178,2]
[310314362,1704471138215,-718.53,0.0003178,2]
[310314363,1704471138224,-799.46,0.0003178,2]
[310314364,1704471138234,-1229.01,0.0003178,2]
[310314365,1704471138244,-2168.33,0.0003178,2]
[310314366,1704471138254,-500.0,0.0003178,2]
[310314367,1704471138264,-1007.17,0.0003178,2]
[310314368,1704471138274,-1440.65,0.0003178,2]
[310314369,1704471138283,-500.0,0.0003178,2]
[310314370,1704471138293,-500.0,0.0003178,2]
[310314371,1704471138303,-1492.25,0.0003178,2]
[310314372,1704471138312,-1310.28,0.0003178,2]
[310314373,1704471138324,-1033.01,0.0003178,2]
[310314374,1704471138334,-500.0,0.0003178,2]
[310314375,1704471138344,-8762.76,0.0003178,2]
[310314376,1704471138354,-500.0,0.0003178,2]
[310314377,1704471138363,-500.0,0.0003178,2]
[310314378,1704471138373,-500.0,0.0003178,2]
[310314379,1704471138384,-500.0,0.0003178,2]
[310314380,1704471138393,-1037.25,0.0003178,2]
[310314381,1704471138402,-1254.6,0.0003178,2]
[310314382,1704471138412,-1235.07,0.0003178,2]
[310314383,1704471138421,-500.0,0.0003178,2]
[310314384,1704471138431,-500.0,0.0003178,2]
[310314385,1704471138440,-288.20833719,0.0003178,2]
[310314386,1704471138450,-1175.89,0.0003178,2]
[310314387,1704471138459,-1231.65,0.0003178,2]
[310314388,1704471138469,-605.08605024,0.0003178,2]
[310314389,1704471138478,-500.0,0.0003178,2]
[310314390,1704471138487,-721.62,0.0003178,2]
[310314391,1704471138496,-2988.81,0.0003178,2]
[310314392,1704471138505,-500.0,0.0003178,2]
[310314393,1704471138516,-8593.4,0.0003178,2]
[310314394,1704471138525,-1078.8,0.0003178,2]
[310314395,1704471138535,-500.0,0.0003178,2]
[310314396,1704471138545,-858.78,0.0003178,2]
[310314397,1704471138554,-1000.0,0.0003178,2]
[310314398,1704471138563,-601.75,0.0003178,2]
[310314399,1704471138572,-500.0,0.0003178,2]
[310314400,1704471138582,-500.0,0.0003178,2]
[310314401,1704471138591,-500.0,0.0003178,2]
[310314402,1704471138600,-500.0,0.0003178,2]
[310314403,1704471138610,-500.0,0.0003178,2]
[310314404,1704471138619,-775.55,0.0003178,2]
[310314405,1704471138629,-508.85,0.0003178,2]
[310314406,1704471138639,-13181.47,0.0003178,2]
[310314407,1704471138649,-2255.28,0.0003178,2]
[310314408,1704471138658,-500.0,0.0003178,2]
[310314409,1704471138667,-1023.39,0.0003178,2]
[310314410,1704471138677,-1387.79,0.0003178,2]
[310314411,1704471138686,-500.0,0.0003178,2]
[310314412,1704471138695,-500.0,0.0003178,2]
[310314413,1704471138705,-500.0,0.0003178,2]
[310314414,1704471138715,-507.25,0.0003178,2]
[310314415,1704471138725,-615.53,0.0003178,2]
[310314416,1704471138734,-502.53335033,0.0003178,2]
[310314417,1704471138744,-2939.6,0.0003178,2]
[310314418,1704471138753,-500.0,0.0003178,2]
[310314419,1704471138763,-500.0,0.0003178,2]
[310314420,1704471138773,-500.0,0.0003178,2]
[310314421,1704471138783,-500.0,0.0003178,2]
[310314422,1704471138796,-875.24,0.0003178,2]
[310314423,1704471138806,-534.68,0.0003178,2]
[310314424,1704471138816,-871.56,0.0003178,2]
[310314425,1704471138825,-735.74,0.0003178,2]
[310314426,1704471138834,-1299.1,0.0003178,2]
[310314427,1704471138843,-1104.41,0.0003178,2]
[310314428,1704471138853,-538.82103883,0.0003178,2]
[310314429,1704471138862,-1102.46,0.0003178,2]
[310314430,1704471138872,-2232.74,0.0003178,2]
[310314431,1704471138882,-500.0,0.0003178,2]
[310314432,1704471138892,-500.0,0.0003178,2]
[310314433,1704471138901,-924.65,0.0003178,2]
[310314434,1704471138911,-815.75,0.0003178,2]
[310314435,1704471138920,-500.0,0.0003178,2]
[310314436,1704471138930,-500.0,0.0003178,2]
[310314437,1704471138939,-500.0,0.0003178,2]
[310314438,1704471138948,-534.43,0.0003178,2]
[310314439,1704471138958,-1341.18,0.0003178,2]
[310314440,1704471138967,-710.02,0.0003178,2]
[310314441,1704471138976,-150.0,0.00031781,2]
[310314442,1704471138985,-150.0,0.00031781,2]
[310314443,1704471138994,-150.0,0.00031781,2]
[310314444,1704471139003,-150.0,0.00031781,2]
[310314445,1704471139012,-150.0,0.000318,20]
[310314446,1704471139022,-237856.389451,0.000318,2]
[310314447,1704471139031,-2000.0,0.000319,2]
[310314448,1704471139042,-150.25100522,0.000319,2]
[310314449,1704471139052,-150.25100517,0.000319,2]
[310314450,1704471139063,-153.84,0.00031963,2]
[310314451,1704471139073,-1000.0,0.00032,2]
[310314452,1704471139082,-193.31320016,0.00032,4]
[310314453,1704471139091,-300.0,0.00032,7]
[310314454,1704471139101,-300.0,0.00032,7]
[310314455,1704471139111,-200.0,0.00032,2]
[310314456,1704471139120,-18722.92197523,0.00032,2]
[310314457,1704471139130,-549.42827711,0.00032,7]
[310314458,1704471139139,-20000.0,0.00032,2]
[310314459,1704471139149,-16432.23131766,0.00032,4]
[310314460,1704471139158,-3000.0,0.00032,2]
[310314461,1704471139167,-3289.566386,0.00032,2]
[310314462,1704471139177,-154.0,0.00032,2]
[310314463,1704471139187,-154.0,0.00032,2]
[310314464,1704471139196,-3000.0,0.0003201,2]
[310314465,1704471139205,-3000.0,0.0003202,2]
[310314466,1704471139215,-3000.0,0.0003203,2]
[310314467,1704471139224,-5930.647965,0.0003204,2]
[310314468,1704471139233,-1452.66853793,0.00032051,2]
[310314469,1704471139243,-500.0,0.00032054,7]
[310314470,1704471139253,-500.0,0.00032054,7]
[310314471,1704471139262,-500.0,0.00032054,2]
[310314472,1704471139273,-785.36,0.00032054,2]
[310314473,1704471139282,-579.0041127,0.00032054,2]
[310314474,1704471139291,-500.0,0.00032054,2]
[310314475,1704471139301,-500.0,0.00032054,2]
[310314476,1704471139310,-500.0,0.00032054,2]
[310314477,1704471139319,-500.0,0.00032054,2]
[310314478,1704471139329,-150.0,0.00032054,2]
[310314479,1704471139338,-500.0,0.00032054,2]
[310314480,1704471139347,-1435.45,0.00032054,2]
[310314481,1704471139356,-500.0,0.00032054,2]
[310314482,1704471139365,-500.0,0.00032054,2]
[310314483,1704471139374,-500.0,0.00032054,2]
[310314484,1704471139383,-586.37839407,0.00032054,2]
[310314485,1704471139393,-274.44445419,0.00032054,2]
[310314486,1704471139402,-515.12329786,0.00032054,2]
[310314487,1704471139411,-500.0,0.00032054,2]
[310314488,1704471139420,-500.0,0.00032054,2]
[310314489,1704471139429,-500.0,0.00032054,2]
[310314490,1704471139439,-500.0,0.00032054,2]
[310314491,1704471139448,-764.34,0.00032054,2]
[310314492,1704471139457,-749.93,0.00032054,2]
[310314493,1704471139466,-500.0,0.00032054,2]
[310314494,1704471139474,-512.27,0.00032054,2]
[310314495,1704471139483,-500.0,0.00032054,2]
[310314496,1704471139492,-790.83,0.00032054,2]
[310314497,1704471139502,-500.0,0.00032054,2]
[310314498,1704471139511,-500.0,0.00032054,2]
[310314499,1704471139521,-500.0,0.00032054,2]
[310314500,1704471139530,-500.0,0.00032054,2]
[310314501,1704471139539,-500.0,0.00032054,2]
[310314502,1704471139549,-500.0,0.00032054,2]
[310314503,1704471139559,-654.72,0.00032054,2]
[310314504,1704471139569,-500.0,0.00032054,2]
[310314505,1704471139577,-500.0,0.00032054,2]
[310314506,1704471139587,-500.0,0.00032054,2]
[310314507,1704471139597,-529.81,0.00032054,2]
[310314508,1704471139606,-553.69,0.00032054,2]
[310314509,1704471139616,-500.0,0.00032054,2]
[310314510,1704471139625,-500.0,0.00032054,2]
[310314511,1704471139634,-500.0,0.00032054,2]
[310314512,1704471139644,-500.0,0.00032054,2]
[310314513,1704471139653,-500.0,0.00032054,2]
[310314514,1704471139663,-500.0,0.00032054,2]
[310314515,1704471139672,-514.47747146,0.00032054,2]
[310314516,1704471139681,-500.0,0.00032054,2]
[310314517,1704471139691,-500.0,0.00032054,2]
[310314518,1704471139700,-500.0,0.00032054,2]
[310314519,1704471139709,-990.19,0.00032054,2]
[310314520,1704471139719,-500.0,0.00032054,2]
[310314521,1704471139728,-500.0,0.00032054,2]
[310314522,1704471139737,-500.0,0.00032054,2]
[310314523,1704471139747,-500.0,0.00032054,2]
[310314524,1704471139756,-849.23,0.00032054,2]
[310314525,1704471139767,-500.0,0.00032054,2]
[310314526,1704471139777,-500.0,0.00032054,2]
[310314527,1704471139787,-500.0,0.00032054,2]
[310314528,1704471139798,-500.0,0.00032054,2]
[310314529,1704471139807,-500.0,0.00032054,2]
[310314530,1704471139816,-500.0,0.00032054,2]
[310314531,1704471139825,-500.0,0.00032054,2]
[310314532,1704471139835,-500.0,0.00032054,2]
[310314533,1704471139845,-581.39,0.00032054,2]
[310314534,1704471139854,-500.0,0.00032054,2]
[310314535,1704471139864,-500.0,0.00032054,2]
[310314536,1704471139874,-500.0,0.00032054,2]
[310314537,1704471139884,-500.0,0.00032054,2]
[310314538,1704471139893,-500.0,0.00032054,2]
[310314539,1704471139903,-500.0,0.00032054,2]
[310314540,1704471139913,-500.0,0.00032054,2]
[310314541,1704471139922,-500.0,0.00032054,2]
[310314542,1704471139931,-500.0,0.00032054,2]
[310314543,1704471139940,-536.19620789,0.00032054,2]
[310314544,1704471139949,-500.0,0.00032054,2]
[310314545,1704471139960,-500.0,0.00032054,2]
[310314546,1704471139969,-567.71352326,0.00032054,2]
[310314547,1704471139977,-500.0,0.00032054,2]
[310314548,1704471139986,-395.51146425,0.00032054,2]
[310314549,1704471139995,-760.0,0.00032054,2]
[310314550,1704471140003,-500.0,0.00032054,2]
[310314551,1704471140012,-500.0,0.00032054,2]
[310314552,1704471140023,-500.0,0.00032054,2]
[310314553,1704471140032,-500.0,0.00032054,2]
[310314554,1704471140042,-500.0,0.00032054,2]
[310314555,1704471140051,-500.0,0.00032054,2]
[310314556,1704471140061,-671.05,0.00032054,2]
[310314557,1704471140071,-508.03,0.00032054,2]
[310314558,1704471140081,-500.0,0.00032054,2]
[310314559,1704471140090,-500.0,0.00032054,2]
[310314560,1704471140100,-500.0,0.00032054,2]
[310314561,1704471140110,-500.0,0.00032054,2]
[310314562,1704471140119,-500.0,0.00032054,2]
[310314563,1704471140129,-500.0,0.00032054,2]
[310314564,1704471140138,-500.0,0.00032054,2]
[310314565,1704471140148,-500.0,0.00032054,2]
[310314566,1704471140157,-500.0,0.00032054,2]
[310314567,1704471140167,-500.0,0.00032054,2]
[310314568,1704471140178,-500.0,0.00032054,2]
[310314569,1704471140188,-538.55,0.00032054,2]
[310314570,1704471140197,-979.16,0.00032054,2]
[310314571,1704471140206,-204.74256303,0.00032054,2]
[310314572,1704471140216,-500.0,0.00032054,2]
[310314573,1704471140225,-500.0,0.00032054,2]
[310314574,1704471140234,-500.0,0.00032054,2]
[310314575,1704471140243,-619.21087797,0.00032054,2]
[310314576,1704471140253,-500.0,0.00032054,2]
[310314577,1704471140262,-1145.26,0.00032054,2]
[310314578,1704471140274,-500.0,0.00032054,2]
[310314579,1704471140283,-702.19,0.00032054,2]
[310314580,1704471140293,-500.0,0.00032054,2]
[310314581,1704471140302,-500.0,0.00032054,2]
[310314582,1704471140313,-518.33,0.00032054,2]
[310314583,1704471140322,-500.0,0.00032054,2]
[310314584,1704471140331,-500.0,0.00032054,2]
[310314585,1704471140342,-500.0,0.00032054,2]
[310314586,1704471140352,-500.0,0.00032054,2]
[310314587,1704471140361,-500.0,0.00032054,2]
[310314588,1704471140371,-500.0,0.00032054,2]
[310314589,1704471140381,-500.0,0.00032054,2]
[310314590,1704471140390,-618.73051268,0.00032054,2]
[310314591,1704471140400,-500.0,0.00032054,2]
[310314592,1704471140411,-521.9757304,0.00032054,2]
[310314593,1704471140421,-500.0,0.00032054,2]
[310314594,1704471140430,-501.69,0.00032054,2]
[310314595,1704471140440,-500.0,0.00032054,2]
[310314596,1704471140450,-500.0,0.00032054,2]
[310314597,1704471140460,-621.07,0.00032054,2]
[310314598,1704471140470,-500.0,0.00032054,2]
[310314599,1704471140479,-500.0,0.00032054,2]
[310314600,1704471140489,-500.0,0.00032054,2]
[310314601,1704471140499,-500.0,0.00032054,2]
[310314602,1704471140509,-500.0,0.00032054,2]
[310314603,1704471140520,-1784.64,0.00032054,2]
[310314604,1704471140530,-500.0,0.00032054,2]
[310314605,1704471140539,-500.0,0.00032054,2]
[310314606,1704471140549,-500.0,0.00032054,2]
[310314607,1704471140560,-500.0,0.00032054,2]
[310314608,1704471140570,-500.0,0.00032054,2]
[310314609,1704471140580,-500.0,0.00032054,2]
[310314610,1704471140590,-500.0,0.00032054,2]
[310314611,1704471140601,-1054.73,0.00032054,2]
[310314612,1704471140611,-710.67,0.00032054,2]
[310314613,1704471140622,-500.0,0.00032054,2]
[310314614,1704471140633,-500.0,0.00032054,2]
[310314615,1704471140644,-500.0,0.00032054,2]
[310314616,1704471140655,-500.0,0.00032054,2]
[310314617,1704471140666,-1300.33,0.00032054,2]
[310314618,1704471140676,-500.0,0.00032054,2]
[310314619,1704471140687,-576.89,0.00032054,2]
[310314620,1704471140697,-408.7,0.00032054,2]
[310314621,1704471140707,-500.0,0.00032054,2]
[310314622,1704471140718,-500.0,0.00032054,2]
[310314623,1704471140729,-500.0,0.00032054,2]
[310314624,1704471140739,-500.0,0.00032054,2]